[Event "NJSK 2023 Jeugd C"]
[Site "Almelo, Netherlands"]
[Date "2023.04.30"]
[Round "1.14"]
[White "Katpatal, Akshaj"]
[Black "Rooijakkers, Liam"]
[Result "1-0"]
[TimeControl "90min/40moves + 30min + 30sec/move"]
[WhiteElo "1840"]
[BlackElo "1322"]

1. e4 {[%clk 01:30:54]} {[%emt 00:00:05]} d6 {[%clk 01:30:49]} {[%emt
00:00:12]} 2. d4 {[%clk 01:31:11]} {[%emt 00:00:13]} Nf6 {[%clk 01:30:57]}
{[%emt 00:00:22]} 3. Nc3 {[%clk 01:31:18]} {[%emt 00:00:23]} Nbd7 {[%clk
01:30:43]} {[%emt 00:00:44]} 4. Nf3 {[%clk 01:31:06]} {[%emt 00:00:42]} e5
{[%clk 01:30:32]} {[%emt 00:00:41]} 5. Bg5 {[%clk 01:27:41]} {[%emt 00:03:54]}
Be7 {[%clk 01:28:53]} {[%emt 00:02:09]} 6. dxe5 {[%clk 01:23:03]} {[%emt
00:05:09]} dxe5 {[%clk 01:27:53]} {[%emt 00:01:30]} 7. Bc4 {[%clk 01:22:40]}
{[%emt 00:00:54]} h6 {[%emt 00:04:51]} 8. Bxf6 {[%clk 01:20:28]} Bxf6 {[%clk
01:25:10]} {[%emt 00:01:32]} 9. Qe2 {[%clk 01:19:48]} {[%emt 00:01:10]} c6
{[%clk 01:23:13]} {[%emt 00:02:23]} 10. a3 {[%clk 01:18:23]} {[%emt 00:01:58]}
Qc7 {[%clk 01:21:51]} {[%emt 00:01:52]} 11. O-O {[%clk 01:13:49]} {[%emt
00:05:05]} Nf8 {[%clk 01:20:03]} {[%emt 00:02:18]} 12. Bb3 {[%clk 01:03:20]}
{[%emt 00:10:59]} g5 {[%clk 01:18:50]} {[%emt 00:01:43]} 13. Rad1 {[%clk
00:55:10]} {[%emt 00:08:41]} Be6 {[%clk 01:13:13]} {[%emt 00:06:07]} 14. h3
{[%clk 00:42:17]} {[%emt 00:13:23]} Bxb3 {[%clk 01:10:16]} {[%emt 00:03:26]} 15.
cxb3 {[%clk 00:42:39]} {[%emt 00:00:08]} Ne6 {[%clk 01:08:33]} {[%emt
00:02:13]} 16. Rc1 {[%clk 00:39:04]} {[%emt 00:04:05]} Qb6 {[%clk 01:04:52]}
{[%emt 00:04:10]} 17. Qe3 {[%clk 00:35:02]} {[%emt 00:04:33]} Qxb3 {[%clk
01:02:11]} {[%emt 00:03:11]} 18. Nd5 {[%clk 00:34:51]} {[%emt 00:00:41]} Qxe3
{[%clk 01:01:23]} {[%emt 00:01:17]} 19. Nxf6+ {[%clk 00:35:09]} {[%emt
00:00:11]} Ke7 {[%clk 01:01:33]} {[%emt 00:00:21]} 20. fxe3 {[%clk 00:35:33]}
{[%emt 00:00:06]} Kxf6 {[%clk 01:01:52]} {[%emt 00:00:12]} 21. Nh4+ {[%clk
00:35:49]} {[%emt 00:00:13]} Kg7 {[%clk 00:56:16]} {[%emt 00:06:06]} 22. Nf5+
{[%clk 00:36:06]} {[%emt 00:00:13]} Kg6 {[%clk 00:56:32]} {[%emt 00:00:14]} 23.
Nd6 {[%clk 00:35:38]} {[%emt 00:00:58]} Nd8 {[%clk 00:56:24]} {[%emt 00:00:38]}
24. Rf5 {[%clk 00:35:23]} {[%emt 00:00:45]} f6 {[%clk 00:54:14]} {[%emt
00:02:41]} 25. Rcf1 {[%clk 00:35:41]} {[%emt 00:00:12]} Rf8 {[%clk 00:52:38]}
{[%emt 00:02:05]} 26. Rxe5 {[%clk 00:31:45]} {[%emt 00:04:26]} Nf7 {[%clk
00:52:50]} {[%emt 00:00:18]} 27. Re6 {[%clk 00:31:29]} {[%emt 00:00:45]} Nxd6
{[%clk 00:52:55]} {[%emt 00:00:26]} 28. Rxd6 {[%clk 00:31:52]} {[%emt
00:00:08]} Rae8 {[%clk 00:52:48]} {[%emt 00:00:36]} 29. Rd4 {[%clk 00:31:55]}
{[%emt 00:00:27]} Re7 {[%clk 00:51:59]} {[%emt 00:01:20]} 30. Kf2 {[%clk
00:31:46]} {[%emt 00:00:38]} Rff7 {[%clk 00:48:11]} {[%emt 00:04:19]} 31. Ke2
{[%clk 00:30:58]} {[%emt 00:01:18]} Rd7 {[%clk 00:45:10]} {[%emt 00:03:30]} 32.
Kd3 {[%clk 00:30:30]} {[%emt 00:00:58]} b5 {[%clk 00:40:06]} {[%emt 00:05:35]}
33. b4 {[%clk 00:30:29]} {[%emt 00:00:31]} a6 {[%clk 00:37:34]} {[%emt
00:03:02]} 34. Rf5 {[%clk 00:30:10]} {[%emt 00:00:48]} Rxd4+ {[%clk 00:35:19]}
{[%emt 00:02:45]} 35. exd4 {[%clk 00:30:29]} {[%emt 00:00:06]} Rd7 {[%clk
00:35:28]} {[%emt 00:00:25]} 36. g4 {[%clk 00:26:01]} {[%emt 00:04:58]} Rd6
{[%clk 00:33:18]} {[%emt 00:02:40]} 37. Rc5 {[%clk 00:24:28]} {[%emt 00:02:03]}
h5 {[%clk 00:32:45]} {[%emt 00:01:03]} 38. Rf5 {[%clk 00:21:38]} {[%emt
00:03:20]} hxg4 {[%clk 00:32:34]} {[%emt 00:00:41]} 39. hxg4 {[%clk 00:22:03]}
{[%emt 00:00:05]} Rd7 {[%clk 00:29:39]} {[%emt 00:03:25]} 40. Rc5 {[%clk
00:22:04]} {[%emt 00:00:29]} Rd6 {[%clk 00:29:45]} {[%emt 00:00:24]} 41. Ke3
{[%clk 00:21:18]} {[%emt 00:01:16]} Kf7 {[%clk 00:29:23]} {[%emt 00:00:52]} 42.
d5 {[%clk 00:21:13]} {[%emt 00:00:34]} cxd5 {[%clk 00:29:30]} {[%emt 00:00:23]}
43. exd5 {[%clk 00:21:38]} {[%emt 00:00:06]} Ke7 {[%clk 00:29:22]} {[%emt
00:00:37]} 44. Ke4 {[%clk 00:18:39]} {[%emt 00:03:29]} Rd7 {[%clk 00:27:37]}
{[%emt 00:02:16]} 45. Rc6 {[%clk 00:17:36]} {[%emt 00:01:33]} Kf7 {[%clk
00:24:45]} {[%emt 00:03:21]} 46. Kd4 {[%clk 00:15:46]} {[%emt 00:02:21]} Ra7
{[%clk 00:24:20]} {[%emt 00:00:55]} 47. d6 {[%clk 00:15:21]} {[%emt 00:00:55]}
Ke6 {[%clk 00:23:00]} {[%emt 00:01:50]} 48. Kc5 {[%clk 00:15:38]} {[%emt
00:00:13]} Kd7 {[%clk 00:19:46]} {[%emt 00:03:44]} 49. Kd5 {[%clk 00:15:36]}
{[%emt 00:00:32]} Rb7 {[%clk 00:18:33]} {[%emt 00:01:43]} 50. Rxa6 {[%clk
00:15:29]} {[%emt 00:00:37]} Rb8 {[%clk 00:17:41]} {[%emt 00:01:23]} 51. Ra7+
{[%clk 00:15:45]} {[%emt 00:00:13]} Ke8 {[%clk 00:18:03]} {[%emt 00:00:08]} 52.
Ke6 {[%clk 00:16:07]} {[%emt 00:00:08]} Rd8 {[%clk 00:18:17]} {[%emt 00:00:17]}
53. Rh7 {[%clk 00:16:29]} {[%emt 00:00:08]} 1-0

[Event "NJSK 2023 Jeugd C"]
[Site "Almelo, Netherlands"]
[Date "2023.04.30"]
[Round "1.15"]
[White "Zootjes, Aäron"]
[Black "Ambrona Navarro, Himar"]
[Result "0-1"]
[TimeControl "90min/40moves + 30min + 30sec/move"]
[WhiteElo "1172"]
[BlackElo "1834"]

1. e4 {[%clk 01:30:58]} {[%emt 00:00:01]} c6 {[%clk 01:30:49]} {[%emt
00:00:11]} 2. d4 {[%clk 01:31:22]} {[%emt 00:00:07]} d5 {[%clk 01:31:13]}
{[%emt 00:00:06]} 3. exd5 {[%clk 01:31:43]} {[%emt 00:00:09]} cxd5 {[%clk
01:31:35]} {[%emt 00:00:08]} 4. c4 {[%clk 01:32:03]} {[%emt 00:00:10]} Nf6
{[%clk 01:31:50]} {[%emt 00:00:14]} 5. Nf3 {[%clk 01:32:16]} {[%emt 00:00:17]}
Nc6 {[%clk 01:31:55]} {[%emt 00:00:24]} 6. Nc3 {[%clk 01:32:35]} {[%emt
00:00:12]} Bf5 {[%clk 01:31:20]} {[%emt 00:01:05]} 7. Bf4 {[%clk 01:32:19]}
{[%emt 00:00:47]} Nb4 {[%clk 01:30:26]} {[%emt 00:01:24]} 8. Qa4+ {[%clk
01:32:11]} {[%emt 00:00:38]} Nc6 {[%clk 01:29:12]} {[%emt 00:01:43]} 9. Ne5
{[%clk 01:30:02]} {[%emt 00:02:40]} Bd7 {[%clk 01:28:23]} {[%emt 00:01:18]} 10.
Nxd7 {[%clk 01:29:28]} {[%emt 00:01:05]} Qxd7 {[%clk 01:28:01]} {[%emt
00:00:50]} 11. Bd3 {[%clk 01:27:52]} {[%emt 00:02:07]} e6 {[%clk 01:25:40]}
{[%emt 00:02:51]} 12. c5 {[%clk 01:27:57]} {[%emt 00:00:26]} Be7 {[%clk
01:24:31]} {[%emt 00:01:37]} 13. O-O {[%clk 01:26:21]} {[%emt 00:02:07]} O-O
{[%clk 01:24:05]} {[%emt 00:00:56]} 14. Nb5 {[%clk 01:24:31]} {[%emt 00:02:21]}
a6 {[%clk 01:22:32]} {[%emt 00:02:03]} 15. Nd6 {[%clk 01:23:28]} {[%emt
00:01:32]} Nh5 {[%clk 01:21:26]} {[%emt 00:01:33]} 16. Be5 {[%clk 01:19:35]}
{[%emt 00:04:26]} Nxe5 {[%clk 01:19:14]} {[%emt 00:02:41]} 17. Qxd7 {[%clk
01:18:57]} {[%emt 00:01:10]} Nxd7 {[%clk 01:19:28]} {[%emt 00:00:16]} 18. Nxb7
{[%clk 01:18:16]} {[%emt 00:01:10]} Nf4 {[%clk 01:18:46]} {[%emt 00:01:11]} 19.
Rad1 {[%clk 01:17:11]} {[%emt 00:01:36]} Nxd3 {[%clk 01:17:14]} {[%emt
00:02:01]} 20. Rxd3 {[%clk 01:17:31]} {[%emt 00:00:11]} Nb8 {[%clk 01:17:12]}
{[%emt 00:00:31]} 21. Na5 {[%clk 01:17:11]} {[%emt 00:00:52]} Rc8 {[%clk
01:16:41]} {[%emt 00:01:00]} 22. a3 {[%clk 01:14:59]} {[%emt 00:02:43]} Nc6
{[%clk 01:15:17]} {[%emt 00:01:53]} 23. Nb3 {[%clk 01:15:20]} {[%emt 00:00:09]}
Bf6 {[%clk 01:14:59]} {[%emt 00:00:47]} 24. Nd2 {[%clk 01:13:56]} {[%emt
00:02:38]} Nxd4 {[%clk 01:12:42]} {[%emt 00:03:04]} 25. b4 {[%clk 01:12:39]}
{[%emt 00:01:47]} Nc6 {[%clk 01:11:24]} {[%emt 00:01:48]} 26. Rg3 {[%clk
01:10:57]} {[%emt 00:02:12]} Be5 {[%clk 01:09:49]} {[%emt 00:02:04]} 27. f4
{[%clk 01:10:39]} {[%emt 00:00:49]} Bd4+ {[%clk 01:08:41]} {[%emt 00:01:37]} 28.
Kh1 {[%clk 01:10:53]} {[%emt 00:00:17]} Ne7 {[%clk 01:08:20]} {[%emt 00:00:51]}
29. Rd3 {[%clk 01:09:59]} {[%emt 00:01:24]} Bf6 {[%clk 01:07:21]} {[%emt
00:01:28]} 30. g4 {[%clk 01:09:13]} {[%emt 00:01:16]} g6 {[%clk 01:06:06]}
{[%emt 00:01:45]} 31. g5 {[%clk 01:06:04]} {[%emt 00:03:40]} Bg7 {[%clk
01:06:02]} {[%emt 00:00:34]} 32. Nf3 {[%clk 01:04:57]} {[%emt 00:01:37]} Nf5
{[%clk 01:04:49]} {[%emt 00:01:42]} 33. Kg1 {[%clk 01:02:49]} {[%emt 00:02:39]}
Rab8 {[%clk 01:04:11]} {[%emt 00:01:08]} 34. Re1 {[%clk 01:01:31]} {[%emt
00:01:48]} a5 {[%clk 01:03:57]} {[%emt 00:00:44]} 35. Rb1 {[%clk 01:01:02]}
{[%emt 00:00:59]} Rxc5 {[%clk 01:03:15]} {[%emt 00:01:13]} 36. bxc5 {[%clk
00:58:55]} {[%emt 00:02:37]} Rxb1+ {[%clk 01:03:27]} {[%emt 00:00:17]} 37. Kg2
{[%clk 00:59:20]} {[%emt 00:00:05]} a4 {[%clk 01:01:03]} {[%emt 00:02:55]} 38.
Ne5 {[%clk 00:56:43]} {[%emt 00:03:06]} Bxe5 {[%clk 01:00:27]} {[%emt
00:01:05]} 39. fxe5 {[%clk 00:57:05]} {[%emt 00:00:08]} Rc1 {[%clk 01:00:31]}
{[%emt 00:00:26]} 0-1

[Event "NJSK 2023 Jeugd C"]
[Site "Almelo, Netherlands"]
[Date "2023.05.01"]
[Round "2.1"]
[White "Krylov, Philippe"]
[Black "Zhu, Chenwu"]
[Result "1-0"]
[TimeControl "90min/40moves + 30min + 30sec/move"]
[WhiteElo "1858"]
[BlackElo "2052"]

1. d4 {[%clk 01:30:55]} {[%emt 00:00:05]} d5 {[%clk 01:30:56]} {[%emt
00:00:04]} 2. c4 {[%clk 01:31:23]} {[%emt 00:00:03]} e6 {[%clk 01:31:24]}
{[%emt 00:00:02]} 3. Nc3 {[%clk 01:31:50]} {[%emt 00:00:02]} c5 {[%clk
01:31:43]} {[%emt 00:00:12]} 4. cxd5 {[%clk 01:31:18]} {[%emt 00:01:01]} exd5
{[%clk 01:32:07]} {[%emt 00:00:05]} 5. Nf3 {[%clk 01:31:33]} {[%emt 00:00:16]}
Nc6 {[%clk 01:32:32]} {[%emt 00:00:05]} 6. g3 {[%clk 01:31:43]} {[%emt
00:00:20]} Nf6 {[%clk 01:32:56]} {[%emt 00:00:06]} 7. Bg2 {[%clk 01:32:00]}
{[%emt 00:00:13]} Be7 {[%clk 01:33:15]} {[%emt 00:00:11]} 8. O-O {[%clk
01:31:08]} {[%emt 00:01:22]} O-O {[%clk 01:33:25]} {[%emt 00:00:20]} 9. Bg5
{[%clk 01:30:24]} {[%emt 00:01:15]} cxd4 {[%clk 01:33:45]} {[%emt 00:00:10]} 10.
Nxd4 {[%clk 01:30:43]} {[%emt 00:00:11]} h6 {[%clk 01:34:08]} {[%emt 00:00:05]}
11. Be3 {[%clk 01:25:28]} {[%emt 00:05:46]} Re8 {[%clk 01:34:12]} {[%emt
00:00:26]} 12. Rc1 {[%clk 01:23:27]} {[%emt 00:02:32]} Bf8 {[%clk 01:33:46]}
{[%emt 00:00:55]} 13. Qa4 {[%clk 01:09:02]} {[%emt 00:14:56]} Na5 {[%clk
01:32:22]} {[%emt 00:01:52]} 14. Qc2 {[%clk 00:43:15]} {[%emt 00:26:18]} Bg4
{[%clk 01:25:59]} {[%emt 00:06:53]} 15. Nb3 {[%clk 00:37:41]} {[%emt 00:06:04]}
Rc8 {[%clk 01:13:26]} {[%emt 00:13:03]} 16. Nxa5 {[%clk 00:36:42]} {[%emt
00:01:30]} Qxa5 {[%clk 01:13:42]} {[%emt 00:00:13]} 17. Qb3 {[%clk 00:35:58]}
{[%emt 00:01:10]} Rcd8 {[%clk 00:52:34]} {[%emt 00:21:41]} 18. Rfd1 {[%clk
00:32:23]} {[%emt 00:04:05]} Re7 {[%clk 00:35:13]} {[%emt 00:17:51]} 19. Nxd5
{[%clk 00:25:41]} {[%emt 00:07:13]} Nxd5 {[%clk 00:35:08]} {[%emt 00:00:34]} 20.
Rxd5 {[%clk 00:25:47]} {[%emt 00:00:24]} Rxd5 {[%clk 00:34:09]} {[%emt
00:01:30]} 21. Qxd5 {[%clk 00:25:55]} {[%emt 00:00:22]} Qb4 {[%clk 00:30:41]}
{[%emt 00:03:57]} 22. Qd4 {[%clk 00:18:30]} {[%emt 00:07:52]} Qxd4 {[%clk
00:30:38]} {[%emt 00:00:37]} 23. Bxd4 {[%clk 00:18:53]} {[%emt 00:00:07]} b6
{[%clk 00:27:56]} {[%emt 00:03:12]} 24. e3 {[%clk 00:17:34]} {[%emt 00:01:49]}
Re8 {[%clk 00:24:35]} {[%emt 00:03:49]} 25. Rc7 {[%clk 00:16:51]} {[%emt
00:01:11]} Re7 {[%clk 00:23:57]} {[%emt 00:01:11]} 26. Rxe7 {[%clk 00:14:23]}
{[%emt 00:02:58]} Bxe7 {[%clk 00:24:25]} {[%emt 00:00:02]} 27. Bd5 {[%clk
00:14:02]} {[%emt 00:00:51]} Kf8 {[%clk 00:23:50]} {[%emt 00:01:05]} 28. f3
{[%clk 00:13:59]} {[%emt 00:00:34]} Bd7 {[%clk 00:24:09]} {[%emt 00:00:10]} 29.
Kf2 {[%clk 00:14:14]} {[%emt 00:00:15]} Bc5 {[%clk 00:20:42]} {[%emt 00:03:57]}
30. Bxc5+ {[%clk 00:13:01]} {[%emt 00:01:44]} bxc5 {[%clk 00:21:09]} {[%emt
00:00:03]} 31. Bc4 {[%clk 00:12:59]} {[%emt 00:00:31]} Ke7 {[%clk 00:21:00]}
{[%emt 00:00:39]} 32. e4 {[%clk 00:13:23]} {[%emt 00:00:07]} f6 {[%clk
00:20:52]} {[%emt 00:00:37]} 33. Ke3 {[%clk 00:13:43]} {[%emt 00:00:10]} Kd6
{[%clk 00:20:51]} {[%emt 00:00:31]} 34. f4 {[%clk 00:13:51]} {[%emt 00:00:22]}
Bg4 {[%clk 00:19:57]} {[%emt 00:01:24]} 35. Be2 {[%clk 00:12:21]} {[%emt
00:02:01]} Be6 {[%clk 00:19:39]} {[%emt 00:00:47]} 36. b3 {[%clk 00:12:11]}
{[%emt 00:00:40]} Kc6 {[%clk 00:18:44]} {[%emt 00:01:26]} 37. Bc4 {[%clk
00:11:29]} {[%emt 00:01:12]} Bg4 {[%clk 00:18:09]} {[%emt 00:01:04]} 38. e5
{[%clk 00:11:25]} {[%emt 00:00:35]} fxe5 {[%clk 00:15:57]} {[%emt 00:02:42]} 39.
fxe5 {[%clk 00:11:48]} {[%emt 00:00:06]} Bf5 {[%clk 00:14:59]} {[%emt
00:01:28]} 40. Kf4 {[%clk 00:07:10]} {[%emt 00:05:08]} Bb1 {[%clk 00:13:44]}
{[%emt 00:01:44]} 41. a3 {[%clk 00:07:24]} {[%emt 00:00:17]} Bc2 {[%clk
00:12:53]} {[%emt 00:01:19]} 42. b4 {[%clk 00:06:36]} {[%emt 00:01:19]} cxb4
{[%clk 00:12:11]} {[%emt 00:01:12]} 43. axb4 {[%clk 00:07:01]} {[%emt
00:00:05]} Bg6 {[%clk 00:10:05]} {[%emt 00:02:36]} 44. Ke3 {[%clk 00:07:24]}
{[%emt 00:00:07]} Bh5 {[%clk 00:06:37]} {[%emt 00:03:57]} 45. Kd4 {[%clk
00:07:41]} {[%emt 00:00:14]} Bg6 {[%clk 00:05:48]} {[%emt 00:01:19]} 46. b5+
{[%clk 00:04:35]} {[%emt 00:03:37]} Kc7 {[%clk 00:04:39]} {[%emt 00:01:39]} 47.
Kc5 {[%clk 00:04:48]} {[%emt 00:00:15]} Be4 {[%clk 00:04:15]} {[%emt 00:00:54]}
48. Bd5 {[%clk 00:05:06]} {[%emt 00:00:10]} Bf5 {[%clk 00:04:12]} {[%emt
00:00:35]} 49. Bf7 {[%clk 00:04:48]} {[%emt 00:00:49]} Kd8 {[%clk 00:03:30]}
{[%emt 00:01:12]} 50. Kd6 {[%clk 00:04:55]} {[%emt 00:00:21]} Bd7 {[%clk
00:03:09]} {[%emt 00:00:52]} 51. e6 {[%clk 00:05:16]} {[%emt 00:00:09]} Bxb5
{[%clk 00:03:23]} {[%emt 00:00:17]} 52. e7+ {[%clk 00:05:42]} {[%emt 00:00:04]}
Kc8 {[%clk 00:03:38]} {[%emt 00:00:15]} 53. Be6+ {[%clk 00:05:50]} {[%emt
00:00:22]} Kb7 {[%clk 00:03:50]} {[%emt 00:00:18]} 54. Bd7 {[%clk 00:06:16]}
{[%emt 00:00:04]} 1-0

[Event "NJSK 2023 Jeugd C"]
[Site "Almelo, Netherlands"]
[Date "2023.05.01"]
[Round "2.2"]
[White "Wink, Luka"]
[Black "Groenewoud, Joel"]
[Result "1-0"]
[TimeControl "90min/40moves + 30min + 30sec/move"]
[WhiteElo "1849"]
[BlackElo "1990"]

1. e4 {[%clk 01:30:39]} {[%emt 00:00:19]} c6 {[%clk 01:30:55]} {[%emt
00:00:06]} 2. d4 {[%clk 01:31:04]} {[%emt 00:00:05]} d5 {[%clk 01:31:20]}
{[%emt 00:00:05]} 3. e5 {[%clk 01:31:30]} {[%emt 00:00:05]} c5 {[%clk
01:31:44]} {[%emt 00:00:06]} 4. Nf3 {[%clk 01:31:53]} {[%emt 00:00:06]} Nc6
{[%clk 01:32:09]} {[%emt 00:00:06]} 5. dxc5 {[%clk 01:32:03]} {[%emt 00:00:19]}
Bg4 {[%clk 01:32:28]} {[%emt 00:00:11]} 6. c3 {[%clk 01:32:13]} {[%emt
00:00:20]} a6 {[%clk 01:32:13]} {[%emt 00:00:45]} 7. Qb3 {[%clk 01:17:12]}
{[%emt 00:15:31]} Bxf3 {[%clk 01:19:54]} {[%emt 00:12:49]} 8. Qxb7 {[%clk
01:16:25]} {[%emt 00:01:17]} Na5 {[%clk 00:40:04]} {[%emt 00:40:20]} 9. Qb4
{[%clk 01:16:30]} {[%emt 00:00:25]} Nc6 {[%clk 00:35:13]} {[%emt 00:05:21]} 10.
Qa4 {[%clk 01:16:22]} {[%emt 00:00:38]} Qc8 {[%clk 00:34:02]} {[%emt 00:01:41]}
11. gxf3 {[%clk 01:16:27]} {[%emt 00:00:25]} e6 {[%clk 00:34:18]} {[%emt
00:00:14]} 12. Be3 {[%clk 01:14:21]} {[%emt 00:02:36]} Nge7 {[%clk 00:34:02]}
{[%emt 00:00:46]} 13. Nd2 {[%clk 01:12:19]} {[%emt 00:02:32]} Qd7 {[%clk
00:33:26]} {[%emt 00:01:06]} 14. Bb5 {[%clk 01:06:59]} {[%emt 00:05:49]} Qb7
{[%clk 00:25:00]} {[%emt 00:08:57]} 15. Bxc6+ {[%clk 01:05:46]} {[%emt
00:01:43]} Qxc6 {[%clk 00:22:20]} {[%emt 00:03:10]} 16. Qxc6+ {[%clk 01:05:34]}
{[%emt 00:00:43]} Nxc6 {[%clk 00:22:44]} {[%emt 00:00:06]} 17. f4 {[%clk
01:04:19]} {[%emt 00:01:45]} a5 {[%clk 00:21:28]} {[%emt 00:01:47]} 18. Nf3
{[%clk 00:55:00]} {[%emt 00:09:48]} Kd7 {[%clk 00:18:54]} {[%emt 00:03:04]} 19.
Kd2 {[%clk 00:47:54]} {[%emt 00:07:35]} Be7 {[%clk 00:17:33]} {[%emt 00:01:52]}
20. a4 {[%clk 00:44:40]} {[%emt 00:03:44]} Rhc8 {[%clk 00:14:51]} {[%emt
00:03:11]} 21. Rhb1 {[%clk 00:42:57]} {[%emt 00:02:13]} Rab8 {[%clk 00:14:56]}
{[%emt 00:00:25]} 22. Kc2 {[%clk 00:41:19]} {[%emt 00:02:08]} Rb7 {[%clk
00:13:07]} {[%emt 00:02:19]} 23. Ne1 {[%clk 00:40:27]} {[%emt 00:01:23]} g5
{[%clk 00:08:58]} {[%emt 00:04:38]} 24. fxg5 {[%clk 00:39:14]} {[%emt
00:01:43]} Nxe5 {[%clk 00:09:15]} {[%emt 00:00:13]} 25. b4 {[%clk 00:39:18]}
{[%emt 00:00:26]} Nc4 {[%clk 00:08:36]} {[%emt 00:01:09]} 26. h4 {[%clk
00:28:59]} {[%emt 00:10:50]} e5 {[%clk 00:07:26]} {[%emt 00:01:40]} 27. Nd3
{[%clk 00:25:32]} {[%emt 00:03:56]} Ke6 {[%clk 00:07:02]} {[%emt 00:00:54]} 28.
Rb3 {[%clk 00:19:04]} {[%emt 00:06:58]} Kf5 {[%clk 00:04:05]} {[%emt 00:03:27]}
29. Rd1 {[%clk 00:16:11]} {[%emt 00:03:24]} axb4 {[%clk 00:02:20]} {[%emt
00:02:15]} 30. cxb4 {[%clk 00:14:52]} {[%emt 00:01:48]} d4 {[%clk 00:02:12]}
{[%emt 00:00:37]} 31. Nxe5 {[%clk 00:11:42]} {[%emt 00:03:41]} Nxe5 {[%clk
00:02:29]} {[%emt 00:00:13]} 32. Bxd4 {[%clk 00:11:41]} {[%emt 00:00:31]} Nc6
{[%clk 00:02:41]} {[%emt 00:00:19]} 33. Kc3 {[%clk 00:09:58]} {[%emt 00:02:13]}
Kg4 {[%clk 00:02:22]} {[%emt 00:00:48]} 34. Bf6 {[%clk 00:09:17]} {[%emt
00:01:11]} Bxf6+ {[%clk 00:02:09]} {[%emt 00:00:44]} 35. gxf6 {[%clk 00:09:46]}
{[%emt 00:00:01]} h5 {[%clk 00:02:10]} {[%emt 00:00:28]} 36. b5 {[%clk
00:09:52]} {[%emt 00:00:25]} Ne5 {[%clk 00:00:33]} {[%emt 00:02:07]} 37. Rb4+
{[%clk 00:09:56]} {[%emt 00:00:26]} Kf5 {[%clk 00:00:54]} {[%emt 00:00:08]} 38.
c6 {[%clk 00:09:57]} {[%emt 00:00:29]} Kxf6 {[%clk 00:00:34]} {[%emt 00:00:51]}
39. Kb3 {[%clk 00:09:50]} {[%emt 00:00:37]} Rbb8 {[%clk 00:00:33]} {[%emt
00:00:31]} 40. a5 {[%clk 00:09:06]} {[%emt 00:01:14]} Ke6 {[%clk 00:00:37]}
{[%emt 00:00:25]} 41. f4 {[%clk 00:08:40]} {[%emt 00:00:56]} Nxc6 {[%clk
00:00:31]} {[%emt 00:00:36]} 42. bxc6 {[%clk 00:08:48]} {[%emt 00:00:22]} Rxb4+
{[%clk 00:00:54]} {[%emt 00:00:07]} 43. Kxb4 {[%clk 00:09:17]} {[%emt
00:00:01]} Rxc6 {[%clk 00:01:18]} {[%emt 00:00:07]} 44. Kb5 {[%clk 00:09:39]}
{[%emt 00:00:07]} Rc2 {[%clk 00:01:33]} {[%emt 00:00:15]} 45. Ra1 {[%clk
00:09:35]} {[%emt 00:00:35]} Kd5 {[%clk 00:00:32]} {[%emt 00:01:31]} 46. Kb6
{[%clk 00:09:45]} {[%emt 00:00:19]} Ke4 {[%clk 00:00:35]} {[%emt 00:00:28]} 47.
Ra4+ {[%clk 00:09:59]} {[%emt 00:00:15]} Kf5 {[%clk 00:00:42]} {[%emt
00:00:23]} 48. a6 {[%clk 00:10:08]} {[%emt 00:00:22]} Kg4 {[%clk 00:00:37]}
{[%emt 00:00:34]} 49. a7 {[%clk 00:10:25]} {[%emt 00:00:13]} Rc8 {[%clk
00:00:44]} {[%emt 00:00:23]} 50. a8=Q {[%clk 00:10:40]} {[%emt 00:00:17]} Rxa8
{[%clk 00:01:06]} {[%emt 00:00:07]} 51. Rxa8 {[%clk 00:11:07]} {[%emt
00:00:02]} Kxf4 {[%clk 00:00:54]} {[%emt 00:00:42]} 52. Kc5 {[%clk 00:11:27]}
{[%emt 00:00:11]} f5 {[%clk 00:01:04]} {[%emt 00:00:20]} 53. Rg8 {[%clk
00:11:37]} {[%emt 00:00:19]} Ke3 {[%clk 00:01:22]} {[%emt 00:00:13]} 54. Rg5
{[%clk 00:11:53]} {[%emt 00:00:13]} f4 {[%clk 00:01:36]} {[%emt 00:00:16]} 55.
Rxh5 {[%clk 00:12:19]} {[%emt 00:00:04]} 1-0